BODY_NAME,BODY,SERVICE AREA CATEGORISATION,EXPENSE TYPE,EXPENSE CODE,INVOICE DATE,TRANSACTION NUMBER,AMOUNT,SUPPLIER NAME,SUPPLIER ID
Melton Borough Council,http://statistics.data.gov.uk/doc/local-authority/31UG,Parkside,Electricity,470,01/02/2016,9196,4720.9,EDF Energy 1 Limited,10416
Melton Borough Council,http://statistics.data.gov.uk/doc/local-authority/31UG,Phoenix House,Electricity,472,09/02/2016,9205,418.32,EDF Energy 1 Limited,10416
Melton Borough Council,http://statistics.data.gov.uk/doc/local-authority/31UG,Me and My Learning,Electricity,630,09/02/2016,9205,418.31,EDF Energy 1 Limited,10416
Melton Borough Council,http://statistics.data.gov.uk/doc/local-authority/31UG,Car Parks and Bus Station,Advertising (Except for Staff),120,05/02/2016,582A,1297.27,Reach Marketing Communications,10694
Melton Borough Council,http://statistics.data.gov.uk/doc/local-authority/31UG,Local Plans,Professional Fees-(Excl.Employees),345,02/02/2016,583A,2000,PTTP Planning Services,13234
Melton Borough Council,http://statistics.data.gov.uk/doc/local-authority/31UG,Me and My Learning,Childcare/Transport,630,26/02/2016,9699,700,Little Rosebuds Creche,16585
Melton Borough Council,http://statistics.data.gov.uk/doc/local-authority/31UG,Current Assets,Amount Due this year,925,22/02/2016,684A,-175.92,Renuvo,10696
Melton Borough Council,http://statistics.data.gov.uk/doc/local-authority/31UG,Fixed Assets,Works - Contractors,900,22/02/2016,684A,2932,Renuvo,10696
Melton Borough Council,http://statistics.data.gov.uk/doc/local-authority/31UG,Corporate Repairs & Maintenance (General Expenses),Planned Maintenance,477,03/02/2016,9249,3600,Sheltons,10743
Melton Borough Council,http://statistics.data.gov.uk/doc/local-authority/31UG,Information Technology,Telephone Recharge from Telephone Hldg A/c,815,03/02/2016,9257,40.5,Orange Limited,10630
Melton Borough Council,http://statistics.data.gov.uk/doc/local-authority/31UG,Information Technology,Telephone Recharge from Telephone Hldg A/c,815,03/02/2016,9257,727.89,Orange Limited,10630
Melton Borough Council,http://statistics.data.gov.uk/doc/local-authority/31UG,Welland Wheels to Work,Wages-Agency Staff,627,09/02/2016,585A,1840,Len Manchester (Melton Mowbray) Limited,10497
Melton Borough Council,http://statistics.data.gov.uk/doc/local-authority/31UG,Control of Pests,Derv - Purchases,15,15/02/2016,9362,80.16,Fuel Card Services Ltd,14878
Melton Borough Council,http://statistics.data.gov.uk/doc/local-authority/31UG,Environmental Maintenance,Petrol - Purchases,507,15/02/2016,9362,336.95,Fuel Card Services Ltd,14878
Melton Borough Council,http://statistics.data.gov.uk/doc/local-authority/31UG,Current Assets,Amount Due this year,925,04/02/2016,9530,-20,T & M Property Maintenance,10793
Melton Borough Council,http://statistics.data.gov.uk/doc/local-authority/31UG,Housing Revenue Account,Contract Work,430,04/02/2016,9530,474.6,T & M Property Maintenance,10793
Melton Borough Council,http://statistics.data.gov.uk/doc/local-authority/31UG,Waste Management,Processing Cost - Comingled Recycling,50,09/02/2016,9358,32190.79,Biffa Waste Services Limited,10257
Melton Borough Council,http://statistics.data.gov.uk/doc/local-authority/31UG,Corporate Repairs & Maintenance (Special Expenses),Responsive Repairs,478,05/02/2016,586A,135,P Hall,10633
Melton Borough Council,http://statistics.data.gov.uk/doc/local-authority/31UG,Corporate Repairs & Maintenance (General Expenses),Responsive Repairs,477,05/02/2016,586A,30,P Hall,10633
Melton Borough Council,http://statistics.data.gov.uk/doc/local-authority/31UG,Corporate Repairs & Maintenance (General Expenses),Responsive Repairs,477,05/02/2016,586A,68,P Hall,10633
Melton Borough Council,http://statistics.data.gov.uk/doc/local-authority/31UG,Corporate Repairs & Maintenance (General Expenses),Responsive Repairs,477,05/02/2016,586A,128,P Hall,10633
Melton Borough Council,http://statistics.data.gov.uk/doc/local-authority/31UG,Corporate Repairs & Maintenance (General Expenses),Responsive Repairs,477,05/02/2016,586A,68,P Hall,10633
Melton Borough Council,http://statistics.data.gov.uk/doc/local-authority/31UG,Corporate Repairs & Maintenance (Special Expenses),Responsive Repairs,478,22/02/2016,587A,82.5,P Hall,10633
Melton Borough Council,http://statistics.data.gov.uk/doc/local-authority/31UG,Corporate Repairs & Maintenance (General Expenses),Responsive Repairs,477,22/02/2016,587A,58,P Hall,10633
Melton Borough Council,http://statistics.data.gov.uk/doc/local-authority/31UG,Corporate Repairs & Maintenance (General Expenses),Responsive Repairs,477,22/02/2016,587A,38,P Hall,10633
Melton Borough Council,http://statistics.data.gov.uk/doc/local-authority/31UG,Corporate Repairs & Maintenance (General Expenses),Responsive Repairs,477,22/02/2016,587A,62.2,P Hall,10633
Melton Borough Council,http://statistics.data.gov.uk/doc/local-authority/31UG,Corporate Repairs & Maintenance (General Expenses),Responsive Repairs,477,22/02/2016,587A,82.5,P Hall,10633
Melton Borough Council,http://statistics.data.gov.uk/doc/local-authority/31UG,Corporate Repairs & Maintenance (General Expenses),Responsive Repairs,477,22/02/2016,587A,48,P Hall,10633
Melton Borough Council,http://statistics.data.gov.uk/doc/local-authority/31UG,Corporate Repairs & Maintenance (General Expenses),Responsive Repairs,477,22/02/2016,587A,85,P Hall,10633
Melton Borough Council,http://statistics.data.gov.uk/doc/local-authority/31UG,Corporate Repairs & Maintenance (Special Expenses),Responsive Repairs,478,22/02/2016,587A,30,P Hall,10633
Melton Borough Council,http://statistics.data.gov.uk/doc/local-authority/31UG,Corporate Repairs & Maintenance (General Expenses),Responsive Repairs,477,22/02/2016,587A,76.4,P Hall,10633
Melton Borough Council,http://statistics.data.gov.uk/doc/local-authority/31UG,Housing Revenue Account,Contract Work,430,24/02/2016,588A,141,P Hall,10633
Melton Borough Council,http://statistics.data.gov.uk/doc/local-authority/31UG,Housing Revenue Account,Contract Work,430,24/02/2016,588A,85,P Hall,10633
Melton Borough Council,http://statistics.data.gov.uk/doc/local-authority/31UG,Housing Revenue Account,Contract Work,430,24/02/2016,588A,841.5,P Hall,10633
Melton Borough Council,http://statistics.data.gov.uk/doc/local-authority/31UG,Current Assets,Recharges to Other Accounts,925,02/02/2016,9194,649.83,P&MM,10634
Melton Borough Council,http://statistics.data.gov.uk/doc/local-authority/31UG,Economic Development,Partnership Projects,575,08/02/2016,589A,715,Springboard Research Limited,13889
Melton Borough Council,http://statistics.data.gov.uk/doc/local-authority/31UG,Corporate Repairs & Maintenance (General Expenses),Responsive Repairs,477,08/02/2016,590A,447.5,Zero Seal Systems Limited,16863
Melton Borough Council,http://statistics.data.gov.uk/doc/local-authority/31UG,Housing Revenue Account,Mains Gas,430,09/02/2016,9582,1408.93,Corona Energy Retail 4 Limited,10367
Melton Borough Council,http://statistics.data.gov.uk/doc/local-authority/31UG,Housing Revenue Account,Mains Gas,430,09/02/2016,9582,330.49,Corona Energy Retail 4 Limited,10367
Melton Borough Council,http://statistics.data.gov.uk/doc/local-authority/31UG,Parkside,Mains Gas,470,09/02/2016,9272,1015.57,Corona Energy Retail 4 Limited,10367
Melton Borough Council,http://statistics.data.gov.uk/doc/local-authority/31UG,Housing Revenue Account,Mains Gas,430,09/02/2016,9583,990.59,Corona Energy Retail 4 Limited,10367
Melton Borough Council,http://statistics.data.gov.uk/doc/local-authority/31UG,Phoenix House,Mains Gas,472,09/02/2016,9271,953.78,Corona Energy Retail 4 Limited,10367
Melton Borough Council,http://statistics.data.gov.uk/doc/local-authority/31UG,Me and My Learning,Mains Gas,630,09/02/2016,9271,953.78,Corona Energy Retail 4 Limited,10367
Melton Borough Council,http://statistics.data.gov.uk/doc/local-authority/31UG,Information Technology,Photo Copying,815,15/02/2016,9366,6078.82,Konica Minolta Business Solutions East Limited,10436
Melton Borough Council,http://statistics.data.gov.uk/doc/local-authority/31UG,Tourism,Contribution to Melton Promotions,315,11/02/2016,591A,750,Leicester Shire Promotions Limited,10461
Melton Borough Council,http://statistics.data.gov.uk/doc/local-authority/31UG,Homelessness,Bed & Breakfast Costs,410,01/02/2016,592A,525,Bunker Residential Properties,10299
Melton Borough Council,http://statistics.data.gov.uk/doc/local-authority/31UG,Homelessness,Bed & Breakfast Costs,410,01/02/2016,592A,525,Bunker Residential Properties,10299
Melton Borough Council,http://statistics.data.gov.uk/doc/local-authority/31UG,Corporate Repairs & Maintenance (General Expenses),Planned Maintenance,477,06/02/2016,593A,2000,RA Jarrom,10690
Melton Borough Council,http://statistics.data.gov.uk/doc/local-authority/31UG,Environmental Maintenance,Contract Work,507,04/02/2016,9254,1444.16,Bottesford Parish Council,10272
Melton Borough Council,http://statistics.data.gov.uk/doc/local-authority/31UG,Me and My Learning,Digital Access & Support,630,23/02/2016,594A,1200,Loughborough College,10519
Melton Borough Council,http://statistics.data.gov.uk/doc/local-authority/31UG,Housing Revenue Account,Unmetered Water Charges,430,08/02/2016,9470,676.55,Severn Trent Water,10739
Melton Borough Council,http://statistics.data.gov.uk/doc/local-authority/31UG,Housing Revenue Account,Unmetered Water Charges,430,08/02/2016,9471,876.72,Severn Trent Water,10739
Melton Borough Council,http://statistics.data.gov.uk/doc/local-authority/31UG,Housing Revenue Account,Unmetered Water Charges,430,10/02/2016,9469,3535.38,Severn Trent Water,10739
Melton Borough Council,http://statistics.data.gov.uk/doc/local-authority/31UG,Housing Revenue Account,Unmetered Water Charges,430,10/02/2016,9469,1178.46,Severn Trent Water,10739
Melton Borough Council,http://statistics.data.gov.uk/doc/local-authority/31UG,Corporate Repairs & Maintenance (General Expenses),Responsive Repairs,477,01/02/2016,9256,4750,Copeland Wedge Associates Ltd (CWA Intelligent Engineering),17109
Melton Borough Council,http://statistics.data.gov.uk/doc/local-authority/31UG,Current Assets,Amount Due this year,925,09/02/2016,595A,-48,Homesure,13597
Melton Borough Council,http://statistics.data.gov.uk/doc/local-authority/31UG,Fixed Assets,Works - Contractors,900,09/02/2016,595A,2176.57,Homesure,13597
Melton Borough Council,http://statistics.data.gov.uk/doc/local-authority/31UG,Current Assets,Amount Due this year,925,12/02/2016,596A,-18,Homesure,13597
Melton Borough Council,http://statistics.data.gov.uk/doc/local-authority/31UG,Fixed Assets,Works - Contractors,900,12/02/2016,596A,960.07,Homesure,13597
Melton Borough Council,http://statistics.data.gov.uk/doc/local-authority/31UG,Fixed Assets,Works - Contractors,900,15/02/2016,597A,1404.6,Homesure,13597
Melton Borough Council,http://statistics.data.gov.uk/doc/local-authority/31UG,Current Assets,Amount Due this year,925,15/02/2016,597A,-24,Homesure,13597
Melton Borough Council,http://statistics.data.gov.uk/doc/local-authority/31UG,Current Assets,Amount Due this year,925,18/02/2016,598A,-12,Homesure,13597
Melton Borough Council,http://statistics.data.gov.uk/doc/local-authority/31UG,Fixed Assets,Works - Contractors,900,18/02/2016,598A,707.11,Homesure,13597
Melton Borough Council,http://statistics.data.gov.uk/doc/local-authority/31UG,Current Assets,Amount Due this year,925,23/02/2016,599A,-12,Homesure,13597
Melton Borough Council,http://statistics.data.gov.uk/doc/local-authority/31UG,Fixed Assets,Works - Contractors,900,23/02/2016,599A,536.52,Homesure,13597
Melton Borough Council,http://statistics.data.gov.uk/doc/local-authority/31UG,Council Tax Collection,Bailiff Fees,680,07/02/2016,9516,2700,Bristow & Sutor,10282
Melton Borough Council,http://statistics.data.gov.uk/doc/local-authority/31UG,Council Tax Collection,Bailiff Fees,680,07/02/2016,9516,-2700,Bristow & Sutor,10282
Melton Borough Council,http://statistics.data.gov.uk/doc/local-authority/31UG,Elections,Professional Fees-(Excl.Employees),600,05/02/2016,600A,244,AEA Bookings,10021
Melton Borough Council,http://statistics.data.gov.uk/doc/local-authority/31UG,Elections,Professional Fees-(Excl.Employees),600,05/02/2016,600A,985,AEA Bookings,10021
Melton Borough Council,http://statistics.data.gov.uk/doc/local-authority/31UG,Fixed Assets,Works - Contractors,900,10/02/2016,601A,854.47,Homesure,13597
Melton Borough Council,http://statistics.data.gov.uk/doc/local-authority/31UG,Current Assets,Amount Due this year,925,10/02/2016,601A,-12,Homesure,13597
Melton Borough Council,http://statistics.data.gov.uk/doc/local-authority/31UG,Welland Procurement Unit,Professional Fees-(Excl.Employees),476,01/02/2016,9208,5123.75,Hall Associates,10190
Melton Borough Council,http://statistics.data.gov.uk/doc/local-authority/31UG,Housing Revenue Account,Electricity,430,17/02/2016,9467,1123.9,E.ON,10414
Melton Borough Council,http://statistics.data.gov.uk/doc/local-authority/31UG,Housing Revenue Account,Electricity,430,17/02/2016,9584,3982.22,E.ON,10414
Melton Borough Council,http://statistics.data.gov.uk/doc/local-authority/31UG,Housing Revenue Account,Electricity,430,17/02/2016,9584,934.11,E.ON,10414
Melton Borough Council,http://statistics.data.gov.uk/doc/local-authority/31UG,Revenue Expenditure Funded From Capital Under Statute,Other Fees,910,04/02/2016,9720,360000,Leicestershire County  Council,10493
Melton Borough Council,http://statistics.data.gov.uk/doc/local-authority/31UG,Land Charges,Professional Fees-(Excl.Employees),580,15/02/2016,9368,693,Leicestershire County  Council,10493
Melton Borough Council,http://statistics.data.gov.uk/doc/local-authority/31UG,Customer Services,LCC Receptionist Cost - Customer Services,471,22/02/2016,9697,19279,Leicestershire County  Council,10493
Melton Borough Council,http://statistics.data.gov.uk/doc/local-authority/31UG,Customer Services,LCC Receptionist Cost - Customer Services,471,22/02/2016,9696,19279,Leicestershire County  Council,10493
Melton Borough Council,http://statistics.data.gov.uk/doc/local-authority/31UG,Customer Services,LCC Receptionist Cost - Customer Services,471,22/02/2016,9698,19279,Leicestershire County  Council,10493
Melton Borough Council,http://statistics.data.gov.uk/doc/local-authority/31UG,Central Services,Subscriptions (Non Employees),810,29/02/2016,602A,1190,CIPFA,10310
Melton Borough Council,http://statistics.data.gov.uk/doc/local-authority/31UG,Customer Services,Stationery,471,12/02/2016,9252,4.7,Banner Business Supplies Limited,10237
Melton Borough Council,http://statistics.data.gov.uk/doc/local-authority/31UG,Corporate & Democratic Core,Stationery,646,12/02/2016,9252,126.38,Banner Business Supplies Limited,10237
Melton Borough Council,http://statistics.data.gov.uk/doc/local-authority/31UG,Local Plans,Local Plan,345,12/02/2016,9252,12.25,Banner Business Supplies Limited,10237
Melton Borough Council,http://statistics.data.gov.uk/doc/local-authority/31UG,Purchasing Dept Stock Purchase Holding Account,Corporate Stationery,474,12/02/2016,9252,225.73,Banner Business Supplies Limited,10237
Melton Borough Council,http://statistics.data.gov.uk/doc/local-authority/31UG,Parkside,Materials Purchased,470,12/02/2016,9252,28.31,Banner Business Supplies Limited,10237
Melton Borough Council,http://statistics.data.gov.uk/doc/local-authority/31UG,Town Area Community Centres,Stationery,101,12/02/2016,9252,26.43,Banner Business Supplies Limited,10237
Melton Borough Council,http://statistics.data.gov.uk/doc/local-authority/31UG,Environmental Maintenance,Stationery,507,12/02/2016,9252,9.32,Banner Business Supplies Limited,10237
Melton Borough Council,http://statistics.data.gov.uk/doc/local-authority/31UG,Corporate Management Team,Stationery,830,12/02/2016,9252,3.26,Banner Business Supplies Limited,10237
Melton Borough Council,http://statistics.data.gov.uk/doc/local-authority/31UG,Information Technology,Photo Copying,815,12/02/2016,9252,308.35,Banner Business Supplies Limited,10237
Melton Borough Council,http://statistics.data.gov.uk/doc/local-authority/31UG,Central Services,Stationery,810,12/02/2016,9252,9.83,Banner Business Supplies Limited,10237
Melton Borough Council,http://statistics.data.gov.uk/doc/local-authority/31UG,Housing Revenue Account,Contract Work,430,18/02/2016,9645,680,Ideal Construction Limited,16509
Melton Borough Council,http://statistics.data.gov.uk/doc/local-authority/31UG,Housing Revenue Account,Contract Work,430,18/02/2016,9644,495,Ideal Construction Limited,16509
Melton Borough Council,http://statistics.data.gov.uk/doc/local-authority/31UG,Fixed Assets,Works - Contractors,900,25/02/2016,9670,3937.5,Pick Everard,12737
Melton Borough Council,http://statistics.data.gov.uk/doc/local-authority/31UG,Tourism,Professional Fees-(Excl.Employees),315,25/02/2016,603A,1371.66,Midland Marquees & Leisure Ltd,17345
Melton Borough Council,http://statistics.data.gov.uk/doc/local-authority/31UG,Fixed Assets,Works - Contractors,900,08/02/2016,604A,1830,Trevor Carter Limited,10821
Melton Borough Council,http://statistics.data.gov.uk/doc/local-authority/31UG,Parkside,Metered Water Charges,470,18/02/2016,9386,1121.87,Severn Trent Water,10739
Melton Borough Council,http://statistics.data.gov.uk/doc/local-authority/31UG,Parkside,Metered Water Charges,470,18/02/2016,9386,1250.77,Severn Trent Water,10739
Melton Borough Council,http://statistics.data.gov.uk/doc/local-authority/31UG,Cattle Market Trading Account,MM Town Estate Agreement Fee,300,01/02/2016,605A,1500,Melton Mowbray Town Estate,10568
Melton Borough Council,http://statistics.data.gov.uk/doc/local-authority/31UG,Housing Revenue Account,Cleaning Materials,430,03/02/2016,606A,6.48,Eastern Shires Purchasing Organisation,10428
Melton Borough Council,http://statistics.data.gov.uk/doc/local-authority/31UG,Housing Revenue Account,Cleaning Materials,430,03/02/2016,606A,33.79,Eastern Shires Purchasing Organisation,10428
Melton Borough Council,http://statistics.data.gov.uk/doc/local-authority/31UG,Housing Revenue Account,Cleaning Materials,430,03/02/2016,606A,9.83,Eastern Shires Purchasing Organisation,10428
Melton Borough Council,http://statistics.data.gov.uk/doc/local-authority/31UG,Housing Revenue Account,Cleaning Materials,430,03/02/2016,606A,16.5,Eastern Shires Purchasing Organisation,10428
Melton Borough Council,http://statistics.data.gov.uk/doc/local-authority/31UG,Housing Revenue Account,Cleaning Materials,430,03/02/2016,606A,43.54,Eastern Shires Purchasing Organisation,10428
Melton Borough Council,http://statistics.data.gov.uk/doc/local-authority/31UG,Housing Revenue Account,Cleaning Materials,430,03/02/2016,606A,25.6,Eastern Shires Purchasing Organisation,10428
Melton Borough Council,http://statistics.data.gov.uk/doc/local-authority/31UG,Housing Revenue Account,Cleaning Materials,430,03/02/2016,606A,33.8,Eastern Shires Purchasing Organisation,10428
Melton Borough Council,http://statistics.data.gov.uk/doc/local-authority/31UG,Housing Revenue Account,Cleaning Materials,430,03/02/2016,606A,20.48,Eastern Shires Purchasing Organisation,10428
Melton Borough Council,http://statistics.data.gov.uk/doc/local-authority/31UG,Housing Revenue Account,Cleaning Materials,430,03/02/2016,606A,6.48,Eastern Shires Purchasing Organisation,10428
Melton Borough Council,http://statistics.data.gov.uk/doc/local-authority/31UG,Housing Revenue Account,Cleaning Materials,430,03/02/2016,606A,13.6,Eastern Shires Purchasing Organisation,10428
Melton Borough Council,http://statistics.data.gov.uk/doc/local-authority/31UG,Housing Revenue Account,Cleaning Materials,430,03/02/2016,606A,8.4,Eastern Shires Purchasing Organisation,10428
Melton Borough Council,http://statistics.data.gov.uk/doc/local-authority/31UG,Housing Revenue Account,Cleaning Materials,430,03/02/2016,606A,1.44,Eastern Shires Purchasing Organisation,10428
Melton Borough Council,http://statistics.data.gov.uk/doc/local-authority/31UG,Housing Revenue Account,Cleaning Materials,430,03/02/2016,606A,31.44,Eastern Shires Purchasing Organisation,10428
Melton Borough Council,http://statistics.data.gov.uk/doc/local-authority/31UG,Housing Revenue Account,Cleaning Materials,430,03/02/2016,606A,56.52,Eastern Shires Purchasing Organisation,10428
Melton Borough Council,http://statistics.data.gov.uk/doc/local-authority/31UG,Housing Revenue Account,Cleaning Materials,430,03/02/2016,606A,14.4,Eastern Shires Purchasing Organisation,10428
Melton Borough Council,http://statistics.data.gov.uk/doc/local-authority/31UG,Housing Revenue Account,Cleaning Materials,430,03/02/2016,606A,9.54,Eastern Shires Purchasing Organisation,10428
Melton Borough Council,http://statistics.data.gov.uk/doc/local-authority/31UG,Housing Revenue Account,Cleaning Materials,430,03/02/2016,606A,19.8,Eastern Shires Purchasing Organisation,10428
Melton Borough Council,http://statistics.data.gov.uk/doc/local-authority/31UG,Housing Revenue Account,Cleaning Materials,430,03/02/2016,606A,3.98,Eastern Shires Purchasing Organisation,10428
Melton Borough Council,http://statistics.data.gov.uk/doc/local-authority/31UG,Housing Revenue Account,Cleaning Materials,430,03/02/2016,606A,25.26,Eastern Shires Purchasing Organisation,10428
Melton Borough Council,http://statistics.data.gov.uk/doc/local-authority/31UG,Housing Revenue Account,Cleaning Materials,430,03/02/2016,606A,24.3,Eastern Shires Purchasing Organisation,10428
Melton Borough Council,http://statistics.data.gov.uk/doc/local-authority/31UG,Housing Revenue Account,Cleaning Materials,430,03/02/2016,606A,23.98,Eastern Shires Purchasing Organisation,10428
Melton Borough Council,http://statistics.data.gov.uk/doc/local-authority/31UG,Housing Revenue Account,Cleaning Materials,430,03/02/2016,606A,3.84,Eastern Shires Purchasing Organisation,10428
Melton Borough Council,http://statistics.data.gov.uk/doc/local-authority/31UG,Housing Revenue Account,Cleaning Materials,430,03/02/2016,606A,3.84,Eastern Shires Purchasing Organisation,10428
Melton Borough Council,http://statistics.data.gov.uk/doc/local-authority/31UG,Housing Revenue Account,Cleaning Materials,430,03/02/2016,606A,28.3,Eastern Shires Purchasing Organisation,10428
Melton Borough Council,http://statistics.data.gov.uk/doc/local-authority/31UG,Housing Revenue Account,Cleaning Materials,430,03/02/2016,606A,11.92,Eastern Shires Purchasing Organisation,10428
Melton Borough Council,http://statistics.data.gov.uk/doc/local-authority/31UG,Housing Revenue Account,Cleaning Materials,430,03/02/2016,606A,12.69,Eastern Shires Purchasing Organisation,10428
Melton Borough Council,http://statistics.data.gov.uk/doc/local-authority/31UG,Housing Revenue Account,Cleaning Materials,430,03/02/2016,606A,16.9,Eastern Shires Purchasing Organisation,10428
Melton Borough Council,http://statistics.data.gov.uk/doc/local-authority/31UG,Housing Revenue Account,Cleaning Materials,430,03/02/2016,606A,30.04,Eastern Shires Purchasing Organisation,10428
Melton Borough Council,http://statistics.data.gov.uk/doc/local-authority/31UG,Housing Revenue Account,Cleaning Materials,430,03/02/2016,606A,32.88,Eastern Shires Purchasing Organisation,10428
Melton Borough Council,http://statistics.data.gov.uk/doc/local-authority/31UG,Housing Revenue Account,Cleaning Materials,430,03/02/2016,606A,2.02,Eastern Shires Purchasing Organisation,10428
Melton Borough Council,http://statistics.data.gov.uk/doc/local-authority/31UG,Housing Revenue Account,Cleaning Materials,430,03/02/2016,606A,15.6,Eastern Shires Purchasing Organisation,10428
Melton Borough Council,http://statistics.data.gov.uk/doc/local-authority/31UG,Housing Revenue Account,Cleaning Materials,430,03/02/2016,606A,66.2,Eastern Shires Purchasing Organisation,10428
Melton Borough Council,http://statistics.data.gov.uk/doc/local-authority/31UG,Housing Revenue Account,Cleaning Materials,430,03/02/2016,606A,95.58,Eastern Shires Purchasing Organisation,10428
Melton Borough Council,http://statistics.data.gov.uk/doc/local-authority/31UG,Current Assets,Payments,925,18/02/2016,9372,123182.3,Severn Trent Water,10739
Melton Borough Council,http://statistics.data.gov.uk/doc/local-authority/31UG,Fixed Assets,Works - Contractors,900,18/02/2016,607A,927.86,Global HSE Solutions Limited,10166
Melton Borough Council,http://statistics.data.gov.uk/doc/local-authority/31UG,Fixed Assets,Works - Contractors,900,18/02/2016,608A,897.81,Global HSE Solutions Limited,10166
Melton Borough Council,http://statistics.data.gov.uk/doc/local-authority/31UG,Parkside,Annual Mntnce/Serv.Agreements,470,23/02/2016,610A,650,Coolair Services Limited,10365
Melton Borough Council,http://statistics.data.gov.uk/doc/local-authority/31UG,Communities & Neighbourhoods,Computer Equip Software Maintenance,876,08/02/2016,9397,697.91,Capita Business Services Limited,10321
Melton Borough Council,http://statistics.data.gov.uk/doc/local-authority/31UG,Fixed Assets,Works - Contractors,900,22/02/2016,611A,3559,MM Electrical & Shopfitting Contractors,16911
Melton Borough Council,http://statistics.data.gov.uk/doc/local-authority/31UG,Fixed Assets,Works - Contractors,900,22/02/2016,611A,4795,MM Electrical & Shopfitting Contractors,16911
Melton Borough Council,http://statistics.data.gov.uk/doc/local-authority/31UG,Legal Services,Professional Fees-(Excl.Employees),845,10/02/2016,9382,550,No 5 Chambers Limited,10607
Melton Borough Council,http://statistics.data.gov.uk/doc/local-authority/31UG,Communications,Training Course Fees,840,18/02/2016,9412,1525.6,Act Now Training Limited,10042
Melton Borough Council,http://statistics.data.gov.uk/doc/local-authority/31UG,Welland Wheels to Work,Other Items,627,10/02/2016,612A,216,Oxford Products Limited,10945
Melton Borough Council,http://statistics.data.gov.uk/doc/local-authority/31UG,Welland Wheels to Work,Other Items,627,10/02/2016,612A,45,Oxford Products Limited,10945
Melton Borough Council,http://statistics.data.gov.uk/doc/local-authority/31UG,Welland Wheels to Work,Other Items,627,10/02/2016,612A,288,Oxford Products Limited,10945
Melton Borough Council,http://statistics.data.gov.uk/doc/local-authority/31UG,Welland Wheels to Work,Other Items,627,10/02/2016,612A,96,Oxford Products Limited,10945
Melton Borough Council,http://statistics.data.gov.uk/doc/local-authority/31UG,Housing Revenue Account,Electricity,430,10/02/2016,9458,13.08,British Gas,10284
Melton Borough Council,http://statistics.data.gov.uk/doc/local-authority/31UG,Housing Revenue Account,Electricity,430,10/02/2016,9458,21.23,British Gas,10284
Melton Borough Council,http://statistics.data.gov.uk/doc/local-authority/31UG,Housing Revenue Account,Electricity,430,10/02/2016,9458,11.33,British Gas,10284
Melton Borough Council,http://statistics.data.gov.uk/doc/local-authority/31UG,Housing Revenue Account,Electricity,430,10/02/2016,9458,162.62,British Gas,10284
Melton Borough Council,http://statistics.data.gov.uk/doc/local-authority/31UG,Housing Revenue Account,Electricity,430,10/02/2016,9458,313.93,British Gas,10284
Melton Borough Council,http://statistics.data.gov.uk/doc/local-authority/31UG,Housing Revenue Account,Electricity,430,10/02/2016,9458,167.88,British Gas,10284
Melton Borough Council,http://statistics.data.gov.uk/doc/local-authority/31UG,Housing Revenue Account,Electricity,430,10/02/2016,9458,48.12,British Gas,10284
Melton Borough Council,http://statistics.data.gov.uk/doc/local-authority/31UG,Housing Revenue Account,Electricity,430,10/02/2016,9458,27.72,British Gas,10284
Melton Borough Council,http://statistics.data.gov.uk/doc/local-authority/31UG,Housing Revenue Account,Electricity,430,10/02/2016,9458,62.3,British Gas,10284
Melton Borough Council,http://statistics.data.gov.uk/doc/local-authority/31UG,Housing Revenue Account,Electricity,430,10/02/2016,9458,71.76,British Gas,10284
Melton Borough Council,http://statistics.data.gov.uk/doc/local-authority/31UG,Housing Revenue Account,Electricity,430,10/02/2016,9458,56.19,British Gas,10284
Melton Borough Council,http://statistics.data.gov.uk/doc/local-authority/31UG,Housing Revenue Account,Electricity,430,10/02/2016,9458,11.31,British Gas,10284
Melton Borough Council,http://statistics.data.gov.uk/doc/local-authority/31UG,Housing Revenue Account,Electricity,430,10/02/2016,9458,7.33,British Gas,10284
Melton Borough Council,http://statistics.data.gov.uk/doc/local-authority/31UG,Housing Revenue Account,Electricity,430,10/02/2016,9458,13.08,British Gas,10284
Melton Borough Council,http://statistics.data.gov.uk/doc/local-authority/31UG,Housing Revenue Account,Electricity,430,10/02/2016,9458,55.37,British Gas,10284
Melton Borough Council,http://statistics.data.gov.uk/doc/local-authority/31UG,Housing Revenue Account,Electricity,430,10/02/2016,9458,56.64,British Gas,10284
Melton Borough Council,http://statistics.data.gov.uk/doc/local-authority/31UG,Housing Revenue Account,Electricity,430,10/02/2016,9458,1480.53,British Gas,10284
Melton Borough Council,http://statistics.data.gov.uk/doc/local-authority/31UG,Housing Revenue Account,Electricity,430,10/02/2016,9458,8.89,British Gas,10284
Melton Borough Council,http://statistics.data.gov.uk/doc/local-authority/31UG,Housing Revenue Account,Electricity,430,10/02/2016,9458,61.12,British Gas,10284
Melton Borough Council,http://statistics.data.gov.uk/doc/local-authority/31UG,Housing Revenue Account,Electricity,430,10/02/2016,9458,9.93,British Gas,10284
Melton Borough Council,http://statistics.data.gov.uk/doc/local-authority/31UG,Housing Revenue Account,Electricity,430,10/02/2016,9458,72.13,British Gas,10284
Melton Borough Council,http://statistics.data.gov.uk/doc/local-authority/31UG,Housing Revenue Account,Electricity,430,10/02/2016,9458,57.31,British Gas,10284
Melton Borough Council,http://statistics.data.gov.uk/doc/local-authority/31UG,Welland Wheels to Work,Other Items,627,24/02/2016,613A,160,Oxford Products Limited,10945
Melton Borough Council,http://statistics.data.gov.uk/doc/local-authority/31UG,Welland Wheels to Work,Other Items,627,24/02/2016,613A,150,Oxford Products Limited,10945
Melton Borough Council,http://statistics.data.gov.uk/doc/local-authority/31UG,Welland Wheels to Work,Other Items,627,24/02/2016,613A,230,Oxford Products Limited,10945
Melton Borough Council,http://statistics.data.gov.uk/doc/local-authority/31UG,Welland Wheels to Work,Other Items,627,12/02/2016,614A,130,Shires Motorcycle Training (Leicester) Limited,13546
Melton Borough Council,http://statistics.data.gov.uk/doc/local-authority/31UG,Welland Wheels to Work,Other Items,627,12/02/2016,614A,130,Shires Motorcycle Training (Leicester) Limited,13546
Melton Borough Council,http://statistics.data.gov.uk/doc/local-authority/31UG,Welland Wheels to Work,Other Items,627,12/02/2016,614A,130,Shires Motorcycle Training (Leicester) Limited,13546
Melton Borough Council,http://statistics.data.gov.uk/doc/local-authority/31UG,Welland Wheels to Work,Other Items,627,12/02/2016,614A,130,Shires Motorcycle Training (Leicester) Limited,13546
Melton Borough Council,http://statistics.data.gov.uk/doc/local-authority/31UG,Welland Wheels to Work,Other Items,627,12/02/2016,614A,130,Shires Motorcycle Training (Leicester) Limited,13546
Melton Borough Council,http://statistics.data.gov.uk/doc/local-authority/31UG,Welland Wheels to Work,Other Items,627,12/02/2016,615A,130,Shires Motorcycle Training (Leicester) Limited,13546
Melton Borough Council,http://statistics.data.gov.uk/doc/local-authority/31UG,Welland Wheels to Work,Other Items,627,12/02/2016,615A,130,Shires Motorcycle Training (Leicester) Limited,13546
Melton Borough Council,http://statistics.data.gov.uk/doc/local-authority/31UG,Welland Wheels to Work,Other Items,627,12/02/2016,615A,130,Shires Motorcycle Training (Leicester) Limited,13546
Melton Borough Council,http://statistics.data.gov.uk/doc/local-authority/31UG,Welland Wheels to Work,Other Items,627,12/02/2016,615A,130,Shires Motorcycle Training (Leicester) Limited,13546
Melton Borough Council,http://statistics.data.gov.uk/doc/local-authority/31UG,Me and My Learning,Metered Water Charges,630,18/02/2016,9422,990.49,Severn Trent Water,10739
Melton Borough Council,http://statistics.data.gov.uk/doc/local-authority/31UG,Phoenix House,Metered Water Charges,472,18/02/2016,9422,990.5,Severn Trent Water,10739
Melton Borough Council,http://statistics.data.gov.uk/doc/local-authority/31UG,Housing Revenue Account,Metered Water Charges,430,12/02/2016,9263,1299.52,Severn Trent Water,10739
Melton Borough Council,http://statistics.data.gov.uk/doc/local-authority/31UG,Legal Services,Professional Fees-(Excl.Employees),845,12/02/2016,9307,7957.62,Leicester City  Council,10457
Melton Borough Council,http://statistics.data.gov.uk/doc/local-authority/31UG,Environmental Health,Professional Fees-(Excl.Employees),5,09/02/2016,9255,792,College Garth-Kennels & Cattery,10355
Melton Borough Council,http://statistics.data.gov.uk/doc/local-authority/31UG,Information Technology,WAN Costs,815,10/02/2016,616A,1779.95,Lloyds IP,13697
Melton Borough Council,http://statistics.data.gov.uk/doc/local-authority/31UG,Me and My Learning,Internet Charges,630,10/02/2016,616A,668.64,Lloyds IP,13697
Melton Borough Council,http://statistics.data.gov.uk/doc/local-authority/31UG,Waste Management,Disposal Costs - Green Waste,50,14/02/2016,9367,1971.77,Land Network (Melton) Limited,10445
Melton Borough Council,http://statistics.data.gov.uk/doc/local-authority/31UG,Housing Revenue Account,Contract Work,430,12/02/2016,617A,712.52,Sewaco Limited,10740
Melton Borough Council,http://statistics.data.gov.uk/doc/local-authority/31UG,Community Services Grants,Annual Grants,595,29/02/2016,618A,2000,Clockwise Credit Union,10351
Melton Borough Council,http://statistics.data.gov.uk/doc/local-authority/31UG,Housing Revenue Account,Other Equipment Purchase,430,02/02/2016,619A,1092.26,Xma Limited,10485
Melton Borough Council,http://statistics.data.gov.uk/doc/local-authority/31UG,NNDR Collection,Rateable Value Analysis,660,17/02/2016,9341,1210,Inform CPI Ltd,14797
Melton Borough Council,http://statistics.data.gov.uk/doc/local-authority/31UG,Legal Services,Harborough District Council,845,01/02/2016,9126,-30861.55,Harborough District Council,10195
Melton Borough Council,http://statistics.data.gov.uk/doc/local-authority/31UG,Legal Services,Harborough District Council,845,01/02/2016,620A,30000,Harborough District Council,10195
Melton Borough Council,http://statistics.data.gov.uk/doc/local-authority/31UG,Legal Services,Harborough District Council,845,01/02/2016,620A,30000,Harborough District Council,10195
Melton Borough Council,http://statistics.data.gov.uk/doc/local-authority/31UG,Legal Services,Harborough District Council,845,01/02/2016,9125,30861.55,Harborough District Council,10195
Melton Borough Council,http://statistics.data.gov.uk/doc/local-authority/31UG,Legal Services,Harborough District Council,845,01/02/2016,621A,30000,Harborough District Council,10195
Melton Borough Council,http://statistics.data.gov.uk/doc/local-authority/31UG,Car Parks and Bus Station,HDC Enforcement Costs,120,15/02/2016,9365,13770.09,Harborough District Council,10195
Melton Borough Council,http://statistics.data.gov.uk/doc/local-authority/31UG,Revenue Expenditure Funded From Capital Under Statute,Grants/Advances,910,12/02/2016,9344,4125,Leicestershire County  Council,10493
Melton Borough Council,http://statistics.data.gov.uk/doc/local-authority/31UG,Revenue Expenditure Funded From Capital Under Statute,Grants/Advances,910,12/02/2016,9342,4500,Leicestershire County  Council,10493
Melton Borough Council,http://statistics.data.gov.uk/doc/local-authority/31UG,Revenue Expenditure Funded From Capital Under Statute,Grants/Advances,910,15/02/2016,9339,3583.4,Property Maintenance Services Limited,10680
Melton Borough Council,http://statistics.data.gov.uk/doc/local-authority/31UG,Revenue Expenditure Funded From Capital Under Statute,Grants/Advances,910,15/02/2016,9337,4500,Apex Building Services,10068
Melton Borough Council,http://statistics.data.gov.uk/doc/local-authority/31UG,Fixed Assets,Works - Contractors,900,05/02/2016,9258,25030.77,Front Row Construction (East Midlands) Limited,10136
Melton Borough Council,http://statistics.data.gov.uk/doc/local-authority/31UG,Fixed Assets,Works - Contractors,900,08/02/2016,9259,5639.7,Front Row Construction (East Midlands) Limited,10136
Melton Borough Council,http://statistics.data.gov.uk/doc/local-authority/31UG,Fixed Assets,Works - Contractors,900,24/02/2016,9604,44259.16,Front Row Construction (East Midlands) Limited,10136
Melton Borough Council,http://statistics.data.gov.uk/doc/local-authority/31UG,Fixed Assets,Works - Contractors,900,29/02/2016,9408,2040,Harborough District Council,10195
Melton Borough Council,http://statistics.data.gov.uk/doc/local-authority/31UG,NNDR Collection,Cost of Collection Allowance,660,05/02/2016,9220,975,Inform CPI Ltd,14797
Melton Borough Council,http://statistics.data.gov.uk/doc/local-authority/31UG,Housing Revenue Account,Contract Work,430,01/02/2016,9642,14696.56,G Purchase Construction Limited,10142
Melton Borough Council,http://statistics.data.gov.uk/doc/local-authority/31UG,Housing Revenue Account,Void Repairs,430,02/02/2016,9132,131.82,G Purchase Construction Limited,10142
Melton Borough Council,http://statistics.data.gov.uk/doc/local-authority/31UG,Housing Revenue Account,Contract Work,430,02/02/2016,9132,156.97,G Purchase Construction Limited,10142
Melton Borough Council,http://statistics.data.gov.uk/doc/local-authority/31UG,Housing Revenue Account,Contract Work,430,02/02/2016,9132,115.23,G Purchase Construction Limited,10142
Melton Borough Council,http://statistics.data.gov.uk/doc/local-authority/31UG,Housing Revenue Account,Contract Work,430,02/02/2016,9132,212.21,G Purchase Construction Limited,10142
Melton Borough Council,http://statistics.data.gov.uk/doc/local-authority/31UG,Fixed Assets,Works - Contractors,900,02/02/2016,9132,475.27,G Purchase Construction Limited,10142
Melton Borough Council,http://statistics.data.gov.uk/doc/local-authority/31UG,Housing Revenue Account,Borough Wide Schedule of Rates,430,02/02/2016,9132,10121.15,G Purchase Construction Limited,10142
Melton Borough Council,http://statistics.data.gov.uk/doc/local-authority/31UG,Housing Revenue Account,Contract Work,430,04/02/2016,622A,1200,G Purchase Construction Limited,10142
Melton Borough Council,http://statistics.data.gov.uk/doc/local-authority/31UG,Housing Revenue Account,Contract Work,430,04/02/2016,623A,19234.92,G Purchase Construction Limited,10142
Melton Borough Council,http://statistics.data.gov.uk/doc/local-authority/31UG,Parkside,Standby Recharge,470,09/02/2016,9716,740,G Purchase Construction Limited,10142
Melton Borough Council,http://statistics.data.gov.uk/doc/local-authority/31UG,Environmental Maintenance,Standby Recharge,507,09/02/2016,9716,80,G Purchase Construction Limited,10142
Melton Borough Council,http://statistics.data.gov.uk/doc/local-authority/31UG,Housing Revenue Account,Void Repairs,430,09/02/2016,9260,3115.92,G Purchase Construction Limited,10142
Melton Borough Council,http://statistics.data.gov.uk/doc/local-authority/31UG,Fixed Assets,Works - Contractors,900,09/02/2016,9260,352.46,G Purchase Construction Limited,10142
Melton Borough Council,http://statistics.data.gov.uk/doc/local-authority/31UG,Fixed Assets,Works - Contractors,900,09/02/2016,9260,147.81,G Purchase Construction Limited,10142
Melton Borough Council,http://statistics.data.gov.uk/doc/local-authority/31UG,Housing Revenue Account,Contract Work,430,09/02/2016,9260,66.32,G Purchase Construction Limited,10142
Melton Borough Council,http://statistics.data.gov.uk/doc/local-authority/31UG,Housing Revenue Account,Contract Work,430,09/02/2016,9260,211.19,G Purchase Construction Limited,10142
Melton Borough Council,http://statistics.data.gov.uk/doc/local-authority/31UG,Housing Revenue Account,Contract Work,430,09/02/2016,9260,158.46,G Purchase Construction Limited,10142
Melton Borough Council,http://statistics.data.gov.uk/doc/local-authority/31UG,Housing Revenue Account,Contract Work,430,09/02/2016,9260,74.6,G Purchase Construction Limited,10142
Melton Borough Council,http://statistics.data.gov.uk/doc/local-authority/31UG,Housing Revenue Account,Contract Work,430,09/02/2016,9260,38.41,G Purchase Construction Limited,10142
Melton Borough Council,http://statistics.data.gov.uk/doc/local-authority/31UG,Housing Revenue Account,Borough Wide Schedule of Rates,430,09/02/2016,9260,6696.94,G Purchase Construction Limited,10142
Melton Borough Council,http://statistics.data.gov.uk/doc/local-authority/31UG,Housing Revenue Account,Contract Work,430,09/02/2016,9260,302.72,G Purchase Construction Limited,10142
Melton Borough Council,http://statistics.data.gov.uk/doc/local-authority/31UG,Housing Revenue Account,Contract Work,430,09/02/2016,9260,192.63,G Purchase Construction Limited,10142
Melton Borough Council,http://statistics.data.gov.uk/doc/local-authority/31UG,Fixed Assets,Works - Contractors,900,12/02/2016,9295,3949.41,G Purchase Construction Limited,10142
Melton Borough Council,http://statistics.data.gov.uk/doc/local-authority/31UG,Housing Revenue Account,Void Repairs,430,12/02/2016,9295,6873.7,G Purchase Construction Limited,10142
Melton Borough Council,http://statistics.data.gov.uk/doc/local-authority/31UG,Fixed Assets,Works - Contractors,900,17/02/2016,9364,59.82,G Purchase Construction Limited,10142
Melton Borough Council,http://statistics.data.gov.uk/doc/local-authority/31UG,Housing Revenue Account,Contract Work,430,17/02/2016,9364,30,G Purchase Construction Limited,10142
Melton Borough Council,http://statistics.data.gov.uk/doc/local-authority/31UG,Housing Revenue Account,Contract Work,430,17/02/2016,9364,94.24,G Purchase Construction Limited,10142
Melton Borough Council,http://statistics.data.gov.uk/doc/local-authority/31UG,Housing Revenue Account,Contract Work,430,17/02/2016,9364,1206.99,G Purchase Construction Limited,10142
Melton Borough Council,http://statistics.data.gov.uk/doc/local-authority/31UG,Housing Revenue Account,Contract Work,430,17/02/2016,9364,72.53,G Purchase Construction Limited,10142
Melton Borough Council,http://statistics.data.gov.uk/doc/local-authority/31UG,Housing Revenue Account,Contract Work,430,17/02/2016,9364,30.67,G Purchase Construction Limited,10142
Melton Borough Council,http://statistics.data.gov.uk/doc/local-authority/31UG,Housing Revenue Account,Borough Wide Schedule of Rates,430,17/02/2016,9364,7811.75,G Purchase Construction Limited,10142
Melton Borough Council,http://statistics.data.gov.uk/doc/local-authority/31UG,Housing Revenue Account,Contract Work,430,17/02/2016,9364,280.15,G Purchase Construction Limited,10142
Melton Borough Council,http://statistics.data.gov.uk/doc/local-authority/31UG,Housing Revenue Account,Void Repairs,430,17/02/2016,9364,62.27,G Purchase Construction Limited,10142
Melton Borough Council,http://statistics.data.gov.uk/doc/local-authority/31UG,Housing Revenue Account,Contract Work,430,25/02/2016,9641,14714.7,G Purchase Construction Limited,10142
Melton Borough Council,http://statistics.data.gov.uk/doc/local-authority/31UG,Communications,Training Course Fees,840,07/02/2016,624A,650,Greenfield Training,16504
Melton Borough Council,http://statistics.data.gov.uk/doc/local-authority/31UG,Me and My Learning,Professional Fees-(Excl.Employees),630,15/02/2016,9352,500,Parish Community Hub,12209
Melton Borough Council,http://statistics.data.gov.uk/doc/local-authority/31UG,Fixed Assets,Works - Contractors,900,15/02/2016,625A,2625,Clearview Environmental Limited,15989
Melton Borough Council,http://statistics.data.gov.uk/doc/local-authority/31UG,Communications,Training Course Fees,840,25/02/2016,626A,3000,Learning Pool Limited,10455
Melton Borough Council,http://statistics.data.gov.uk/doc/local-authority/31UG,Fixed Assets,Works - Contractors,900,03/02/2016,9705,680,Western Power Distribution,17373
Melton Borough Council,http://statistics.data.gov.uk/doc/local-authority/31UG,Waste Management,Refuse Contractor,50,02/02/2016,9401,-15944.91,Biffa Waste Services Limited,10257
Melton Borough Council,http://statistics.data.gov.uk/doc/local-authority/31UG,Waste Management,Refuse Contractor,50,02/02/2016,9401,15944.91,Biffa Waste Services Limited,10257
Melton Borough Council,http://statistics.data.gov.uk/doc/local-authority/31UG,Waste Management,Refuse Contractor,50,15/02/2016,9721,130141.5,Biffa Waste Services Limited,10257
Melton Borough Council,http://statistics.data.gov.uk/doc/local-authority/31UG,Waste Management,Cleansing Contractor,50,15/02/2016,9721,28023.93,Biffa Waste Services Limited,10257
Melton Borough Council,http://statistics.data.gov.uk/doc/local-authority/31UG,Town Area Community Centres,Cleaning & Domestic Equipment,101,01/02/2016,627A,368.49,Cathedral Leasing Limited,10326
Melton Borough Council,http://statistics.data.gov.uk/doc/local-authority/31UG,Town Area Community Centres,Cleaning & Domestic Equipment,101,01/02/2016,627A,365.25,Cathedral Leasing Limited,10326
Melton Borough Council,http://statistics.data.gov.uk/doc/local-authority/31UG,Welland Wheels to Work,Other Items,627,24/02/2016,628A,86,Castledine Motorcycles,10325
Melton Borough Council,http://statistics.data.gov.uk/doc/local-authority/31UG,Welland Wheels to Work,Other Items,627,24/02/2016,628A,120,Castledine Motorcycles,10325
Melton Borough Council,http://statistics.data.gov.uk/doc/local-authority/31UG,Welland Wheels to Work,Other Items,627,24/02/2016,628A,71,Castledine Motorcycles,10325
Melton Borough Council,http://statistics.data.gov.uk/doc/local-authority/31UG,Welland Wheels to Work,Other Items,627,24/02/2016,628A,71,Castledine Motorcycles,10325
Melton Borough Council,http://statistics.data.gov.uk/doc/local-authority/31UG,Welland Wheels to Work,Other Items,627,24/02/2016,628A,111,Castledine Motorcycles,10325
Melton Borough Council,http://statistics.data.gov.uk/doc/local-authority/31UG,Homelessness,Bed & Breakfast Costs,410,19/02/2016,629A,2015,Quorn Lodge Hotel,10687
Melton Borough Council,http://statistics.data.gov.uk/doc/local-authority/31UG,Homelessness,Bed & Breakfast Costs,410,19/02/2016,629A,2015,Quorn Lodge Hotel,10687
Melton Borough Council,http://statistics.data.gov.uk/doc/local-authority/31UG,Misc. Financing Items,Other Charges for Services,705,17/02/2016,9350,9921.31,Biffa Waste Services Limited,10257
Melton Borough Council,http://statistics.data.gov.uk/doc/local-authority/31UG,Tourism,Computer Equip Software Maintenance,315,04/02/2016,630A,2500,Townapps Ltd,16905
Melton Borough Council,http://statistics.data.gov.uk/doc/local-authority/31UG,Strategic Sports  & Leisure Development,Active Together Expenditure,697,04/02/2016,631A,1260,Asfordby and Melton Society of Anglers,15777
Melton Borough Council,http://statistics.data.gov.uk/doc/local-authority/31UG,Leisure Vision,Leisure Vision Contractor,60,09/02/2016,9329,1666,SLM Limited,10714
Melton Borough Council,http://statistics.data.gov.uk/doc/local-authority/31UG,Current Assets,Payments,925,22/02/2016,9373,22637.22,Melton Borough Council,10555
Melton Borough Council,http://statistics.data.gov.uk/doc/local-authority/31UG,Revenue Expenditure Funded From Capital Under Statute,Grants/Advances,910,18/02/2016,9375,1076.25,Belvoir Lettings,10249
Melton Borough Council,http://statistics.data.gov.uk/doc/local-authority/31UG,Revenue Expenditure Funded From Capital Under Statute,Grants/Advances,910,29/02/2016,9409,966,Shouler & Son,15356
Melton Borough Council,http://statistics.data.gov.uk/doc/local-authority/31UG,Revenue Expenditure Funded From Capital Under Statute,Grants/Advances,910,18/02/2016,9374,1391.25,Shouler & Son,15356
Melton Borough Council,http://statistics.data.gov.uk/doc/local-authority/31UG,Revenue Expenditure Funded From Capital Under Statute,Grants/Advances,910,18/02/2016,9376,2992.5,M A Scott Plumbing & Heating,14272
